Cogmind - Beta 15 @@@ ROGUE MODE // 2025.10.08 @ 12:28:14 Player: Oertel Result: Destroyed by G-34 Mercenary with Small Laser Performance ------------- Evolutions (0) 0 Regions Visited (1) 200 Robots Destroyed (23) 115 Value Destroyed (513) 513 Prototype IDs (0) 0 Alien Tech Used (0) 0 Bonus (0) 0 TOTAL SCORE: 828 Bonus ------- None Cogmind --------- Core Integrity 0/250 Matter 280/300 Energy 100/100 System Corruption 0% Temperature Cool (6) Movement Treading (240) Ox1 Location -10/Materials Parts ------- > --- POWER (1) -------- (None) > --- PROPULSION (2) --- Light Treads Light Treads > --- UTILITY (2) ------ High-capacity Storage Unit Hacking Suite > --- WEAPON (2) ------- Hammer > --- INVENTORY (20) --- Light Ion Engine Light Ion Engine Medium Storage Unit Weapon Shielding Light Armor Plating Small Laser Welding Torch Peak State ------------ > --- POWER ------------ Light Ion Engine > --- PROPULSION ------- Light Treads Light Treads > --- UTILITY ---------- ECM Suite Hacking Suite > --- WEAPON ----------- Medium Laser Hammer > --- INVENTORY -------- Ion Engine Light Ion Engine EM Pulse Gun [Rating: 9] Favorites ----------- Power Light Ion Engine Engine Light Ion Engine Propulsion Light Treads Treads Light Treads Leg Aluminum Leg Utility Hacking Suite Device ECM Suite Storage High-capacity Storage Unit Hackware Hacking Suite Protection Weapon Shielding Weapon Hammer Energy Gun Medium Laser Ballistic Gun Assault Rifle Special Weapon Mining Laser Impact Weapon Hammer Build | -11 -10 ------- Run | Yrd Mat Slots Evolved . | . . Power . | . . Propulsion . | . . Utility . | . . Weapon . | . . Parts Attached 19 | 5 14 Power 2 | 1 1 Engine 2 | 1 1 Core . | . . Reactor . | . . Propulsion 6 | 2 4 Treads 4 | . 4 Leg 2 | 2 . Wheel . | . . Hover . | . . Flight . | . . Utility 4 | . 4 Device 1 | . 1 Storage 1 | . 1 Processor . | . . Hackware 1 | . 1 Protection 1 | . 1 Artifact . | . . Weapon 7 | 2 5 Energy Gun 1 | 1 . Energy Cannon . | . . Ballistic Gun 1 | 1 . Ballistic Cannon . | . . Launcher . | . . Special Weapon 4 | . 4 Impact Weapon 1 | . 1 Slashing Weapon . | . . Piercing Weapon . | . . Special Melee Weapon . | . . Unidentified Prototypes . | . . Parts Lost 6 | . 6 Power 2 | . 2 Propulsion 2 | . 2 Utility . | . . Weapon 2 | . 2 Highest Loss Streak 1 | . 1 To Critical Strikes . | . . Average Backups 6 | 2 6 Power 2 | . 2 Propulsion 1 | 1 1 Utility 2 | . 2 Weapon . | . . Tool/Special . | . . Unused Backups 11 | 2 9 Power 2 | . 2 Propulsion 4 | 2 2 Utility 3 | . 3 Weapon 2 | . 2 Tool/Special . | . . Average Slot Usage (%) 85 | . 85 Engine 9 | . 9 Treads 25 | . 25 Leg 2 | . 2 Storage 11 | . 11 Hackware 13 | . 13 Energy Gun 1 | . 1 Ballistic Gun 1 | . 1 Special Weapon 4 | . 4 Impact Weapon 12 | . 12 Peak Build Rating 9 | 5 9 Average Rating 7 | 3 8 On Entrance 2 | . 5 Naked Turns . | . . Heaviest Build 47 | 7 47 Greatest Support 40 | 20 40 Greatest Overweight (x) 1 | . 1 Average Overweight (x) . | . . Largest Inventory Capacity 20 | 5 20 Average Capacity 17 | 5 17 Most Carried 8 | 5 8 Average Carried 6 | 2 6 Final Capacity 20 | 5 20 Final Carried 7 | 5 7 Class Distribution -------------------- 100% | Mutant Dominant Class ---------------- Mutant | -10/Materials Resources | -11 -10 ----------- Run | Yrd Mat Matter Collected 427 | 259 168 Remotely . | . . Salvage Created 624 | 30 594 Parts 29 | 4 25 Haulers Intercepted . | . . Recyclers Shooed . | . . Parts Field Recycled . | . . Retrieved Matter . | . . Parts Self-Destructed . | . . Prevented . | . . Kills | -11 -10 ------- Run | Yrd Mat Combat Hostiles Destroyed 15 | 1 14 Melee 4 | . 4 Guns 4 | 1 3 Cannons 1 | . 1 AOE 1 | . 1 Classes Destroyed 7 | 1 6 Worker 1 | . 1 Builder 2 | . 2 Recycler 1 | . 1 Operator 2 | . 2 Watcher 2 | . 2 Swarmer 6 | . 6 Grunt 9 | 1 8 Best Kill Streak 3 | 1 3 Combat Bots Only 3 | 1 3 Max Kills in Single Turn 2 | 1 2 Gunslinging . | . . Exploded 1 | . 1 Melee 1 | . 1 Uniques/NPCs Destroyed . | . . Combat | -11 -10 -------- Run | Yrd Mat Hostile Shots Fired 126 | 4 122 Missed 30 | . 30 Hits 96 | 4 92 Projectile 96 | 4 92 Critical Strikes 2 | . 2 Part Disruptions 1 | . 1 Damage Taken 1160 | 46 1114 Core 252 | 12 240 Absorbed by Shields . | . . Regen/Repaired (Parts) 190 | . 190 Core Remaining (%) 95 | 95 . Volleys Fired 22 | 3 19 Largest 2 | 2 2 Hottest 100 | 70 100 Shots Fired 36 | 6 30 Gun 28 | 6 22 Cannon . | . . Launcher . | . . Special 8 | . 8 Kinetic 14 | 3 11 Thermal 22 | 3 19 Explosive . | . . Electromagnetic . | . . Robot Hit Streak 2 | 2 1 Robot Miss Streak 3 | 1 3 Penetration Max . | . . Secondary Targets . | . . Shots Hit Robots 55 | 3 52 Core Hits 17 | 2 15 Critical Kills 1 | . 1 Critical Parts Destroyed 3 | . 3 Critical Strikes 4 | . 4 Smash 4 | . 4 Melee Attacks 60 | . 60 Impact 60 | . 60 Slashing . | . . Piercing . | . . Sneak Attacks 7 | . 7 Combat Hostiles . | . . Follow-up Attacks . | . . Damage Inflicted 1627 | 39 1588 Guns 134 | 39 95 Cannons . | . . Explosions 138 | . 138 Melee 1331 | . 1331 Ramming . | . . Kinetic 83 | 26 57 Thermal 92 | 13 79 Explosive . | . . Electromagnetic 121 | . 121 Impact 1331 | . 1331 Slashing . | . . Piercing . | . . Highest Corruption . | . . Average Corruption . | . . Corruption Purged . | . . Corruption Blocked . | . . Overload Shots . | . . Overflow Damage 239 | . 239 Projectiles . | . . Explosions . | . . Melee 239 | . 239 Knockbacks 5 | . 5 Impact 5 | . 5 Kinetic . | . . Secondary . | . . Self-Inflicted Damage 63 | . 63 Shots 2 | . 2 Rammed . | . . Targets Rammed . | . . Kicked . | . . Crushed . | . . Highest Temperature 64 | 51 64 Average Temperature 17 | 31 15 Received Heat Transfer 534 | 24 510 Siege Activations . | . . Martial Activations . | . . Shielding Activations . | . . Robots Disrupted . | . . Combat Hostiles . | . . Robots Corrupted 8 | . 8 Combat Hostiles 5 | . 5 Parts Fried 12 | . 12 Impact Corruptions 16 | . 16 Robots Melted . | . . Combat Hostiles . | . . Parts Melted . | . . Heat Transferred 198 | 37 161 Parts Sabotaged . | . . Parts Stolen . | . . Parts Stripped . | . . Power Chain Reactions 1 | . 1 Alert | -11 -10 ------- Run | Yrd Mat Maximum Alert Level . | . . Low Security (%) 100 | 100 100 Level 1 . | . . Level 2 . | . . Level 3 . | . . Level 4 . | . . Level 5 . | . . High Security . | . . Max Security . | . . Peak Influence 132 | 20 132 Initial 6 | . 6 Average 35 | 1 36 Influence Increases 516 | 20 496 Destroy 0b10 Robot/C 300 | 20 280 Destroy 0b10 Robot/NC 40 | . 40 Destroy Leader 74 | . 74 Successful Hack 2 | . 2 Disable Machine 60 | . 60 Destroy Structure 10 | . 10 Lose Combat Pursuer 30 | . 30 Influence Decreases 431 | 10 421 Entered New Map 4 | . 4 Time Decay 377 | 10 367 Lost Part 50 | . 50 Squads Dispatched 3 | . 3 Investigation 1 | . 1 Extermination . | . . Reinforcement 2 | . 2 Assault . | . . Garrison . | . . Intercept . | . . Searches Triggered . | . . Construction Impeded . | . . Haulers Reinforced . | . . Active Scanning Responses . | . . Cargo Convoy Interrupts . | . . Stealth | -11 -10 --------- Run | Yrd Mat Distress Signals 1 | . 1 Communications Jammed . | . . Distress Signals . | . . Times Spotted 27 | 1 26 Peak Tracking Total 4 | 1 4 Tactical Retreats 2 | . 2 Traps | -11 -10 ------- Run | Yrd Mat Traps Triggered 3 | . 3 Indirectly . | . . Trap Hack Attempts . | . . Triggered . | . . Disarmed . | . . Reprogrammed . | . . Reused . | . . Traps Extracted . | . . Installed . | . . Triggered . | . . Machines | -11 -10 ---------- Run | Yrd Mat Machines Disabled 4 | . 4 Max in Single Turn 3 | . 3 Machines Repaired . | . . Machines Dismantled . | . . Machines Sabotaged . | . . Overloaded Fab Kills . | . . Hacking | -11 -10 --------- Run | Yrd Mat Machines Accessed 3 | . 3 Terminals 2 | . 2 Fabricators . | . . Repair Stations 1 | . 1 Recycling Units . | . . Scanalyzers . | . . Garrison Access . | . . Total Hacks 13 | . 13 Successful 7 | . 7 Failed 6 | . 6 Catastrophic 2 | . 2 Database Lockouts . | . . Manual . | . . Terminals 7 | . 7 Fabricators . | . . Repair Stations 6 | . 6 Recycling Units . | . . Scanalyzers . | . . Garrison Access . | . . Terminal Hacks 2 | . 2 Emergency Access Points 1 | . 1 Zone Layout 1 | . 1 Fabricator Hacks . | . . Repair Station Hacks 5 | . 5 Scan Component 3 | . 3 Repair 2 | . 2 Recycling Unit Hacks . | . . Scanalyzer . | . . Garrison Access Hacks . | . . Unauthorized Hacks . | . . Terminals . | . . Fabricators . | . . Repair Stations . | . . Recycling Units . | . . Scanalyzers . | . . Garrison Access . | . . Data Cores Recovered . | . . Used . | . . Hacking Detections 2 | . 2 Full Trace Events . | . . Feedback Events . | . . Feedback Blocked . | . . Robot Schematics Acquired . | . . Robots Built . | . . Authchips . | . . Time . | . . Total Robot Build Rating . | . . Part Schematics Acquired . | . . Parts Built . | . . Authchips . | . . Time . | . . Total Part Build Rating . | . . Parts Repaired 2 | . 2 Time 52 | . 52 Parts Recycled . | . . Recycled Matter . | . . Retrieved Matter . | . . Retrieved Components . | . . Parts Scanalyzed . | . . Part Schematics Acquired . | . . Parts Damaged . | . . Bothacking | -11 -10 ------------ Run | Yrd Mat Used RIF Installer . | . . Robots Hacked . | . . Non-combat . | . . Combat . | . . Robot Hacks Applied . | . . Relay Couplers Released . | . . Fabnet Peak Effective % . | . . Robots Rewired . | . . Allies Hacked . | . . Hacks Repelled . | . . Allies | -11 -10 -------- Run | Yrd Mat Total Allies . | . . Largest Group . | . . Highest-Rated Group . | . . Highest-Rated Ally . | . . Total Orders . | . . Ally Attacks . | . . Total Damage . | . . Kills . | . . Allies Corrupted . | . . Allies Melted . | . . Intel | -11 -10 ------- Run | Yrd Mat Active Infowar (turns) 103 | . 103 ECM 103 | . 103 Robot Analysis Total . | . . Derelict Logs Recovered . | . . Drone Launches . | . . Drone Recoveries . | . . Exploration | -11 -10 ------------- Run | Yrd Mat Turns Passed 2230 | 95 2135 Spaces Moved 882 | 67 815 Core 15 | 15 . Treads 723 | . 723 Legs 144 | 52 92 Wheels . | . . Hover . | . . Flight . | . . Fastest Speed 50 | 50 120 Average Speed 208 | 104 216 Slowest Speed 240 | 120 240 Overloaded Moves . | . . Propulsion Burnouts . | . . Robots Hopped . | . . Potential Cave-ins . | . . Cave-ins Triggered . | . . Exploration Rate (%) 41 | 7 75 Regions Visited 1 Branch Regions . Pre-discovered Areas . | . . Known Exits Taken . | . . Unknown Exits Taken 1 | 1 . Scrap Searched . | . . Spaces Dug 5 | . 5 Terrain Destroyed 8 | . 8 Melee 1 | . 1 Projectile 5 | . 5 AOE 2 | . 2 Terrain Rammed . | . . Walls Destroyed . | . . Machines Disabled . | . . Actions | -11 -10 --------- Run | Yrd Mat Total 1118 | 85 1033 Wait 100 | . 100 Move 881 | 66 815 Hop . | . . Pick Up 19 | 9 10 Fast Attach 15 | 3 12 Attach 7 | 2 5 Detach 1 | . 1 Swap 1 | . 1 Drop 12 | 2 10 Fire 22 | 3 19 Melee 60 | . 60 Ram . | . . Kick . | . . Crush . | . . Escape Stasis . | . . Rewire . | . . Trap . | . . Miscellaneous . | . . Route ------- -11/Scrapyard -10/Materials (discovered 3 exits: [*Mat] / [*Min x2]) History --------- Turn | Location | Event 2 | -11/Scrapyard | Met Revision 17 66 | -11/Scrapyard | Discovered new exit (range 8) 96 | -11/Scrapyard | Entered Materials 316 | -10/Materials | Build established: Mutant 326 | -10/Materials | Discovered new exit (range 6) 588 | -10/Materials | Discovered new exit (range 16) 1640 | -10/Materials | Core integrity fell below 50% 1994 | -10/Materials | Repaired Lgt. Treads 2021 | -10/Materials | Repaired Hammer 2072 | -10/Materials | Discovered new exit (range 16) 2220 | -10/Materials | Core integrity fell below 20% 2231 | -10/Materials | Destroyed by G-34 Mercenary with Small Laser Last Messages --------------- 02180_ K-01 Serf cleans the Terminal. 02182_ Sneak attack on O-16 Technician. 02182_ Destroyed Lgt. Ion Engine. 02182_ O-16 Technician system corrupted by crushing effect. 02183_ O-16 Technician system terminally corrupted. 02183_ Hover Unit fried. 02183_ Datajack fried. 02186_ K-01 Serf collects debris. 02197_ Lgt. Treads destroyed. 02199_ Critical hit (Burn: +37). 02229_ Ion Engine destroyed. 02229_ G-47 Trooper suffers critical hit (Smash). 02229_ Destroyed Particle Gun. 02229_ G-47 Trooper system corrupted by crushing effect. 02230_ G-47 Trooper system terminally corrupted. 02231_ K-01 Serf collects debris. Map ----- +----------------------------------------------------+ | # # #???????# ### | | ?# ??# #?????#####+####? | | ?#????# #######+## #?????# #? | | ??????# #????????## ##?????# """ #? | | ####### ## ## #??????# """ #? | | # # ## ## #??????# """ #? | | # ## ## ######## """ #? | | # """ # ## # # """ #? | | # """ ###+####### # # #? | | # """ # # # # # % #? | | # + + #%% #? | | # # # ! # # #+########? | | # # # + # #%##??????? | | # " " # ##+#########+#########%##??????? | | # "R" + + #???# ##??????? | | # """ ######+##### #???# ##??????? | | # #??# ## """ #???# ##??????? | | #######??# """" ## """"" #???# ####????? | | ?????????# """" ##"" """"" #???# !##???? | | ?????????# """" ##"T """"" #???# !#???? | | ########## ##"" """ #???# !#???? | | # # ##% #???# !#???? | | # "" #########/#########???# !#???? | | # T" # ###a##??????????# !##???? | | # "" # % ############ ####????? | | # + g @ k + | # ######## | | # """ # % ###### T # | | # """ # ######????# !# ##### | | # """ ## ##########?# # | | # ## # #?# # | | ########### + """ #?# """ + " | | ??????????# # """ #?# """ # | | ??????##### # """ #?# """ ## ### | | ??????# # #?# ##+#??# # | | ??????# # """ #?# # ??? # | | ????????? #?? ???????# [ #??????? # | | ????????[ #?? "??????# #???????? # | | ???????== #??? ??????####+##???????? # | | ????????= #??????????????????????????? | | ?????????## #??????????????????????????? | | ??????????? =???????????????????????????? | | ?????????????????????????????????????????? | | ?????????????????????????????????????????? | | ?????????????????????????????????????????? | | ?????????????????????????????????????????? | | ?????????????????????????????????????????? | | ?????????????????????????????????????????? | | ?????????????????????????????????????????? | | ?????????????????????????????????????????? | | ?????????????????????????????????????????? | +----------------------------------------------------+ Best States ------------- Heat Dissipation 25 Energy Generation 10 Energy Capacity 250 Matter Stores 300 Matter Capacity 300 Sight Range 16 Terrain Scan Density 10 ECM Strength 1 Weapon Shielding 33 Evasion (%) 55 Recoil Reduction 2 Offensive Hacking 10 Item Schematics ----------------- None Robot Schematics ------------------ None Fabricated ------------ Nothing Repaired ---------- Lgt. Treads | 6% | -10/Materials Hammer | 41% | -10/Materials Alien Tech Used ----------------- None Achievements -------------- Batter Up Challenges ------------ None Game ------ Seed ArcConceptJets Manual? 0 Play Time 00:32:03 Cumulative 9.4 hours Start 2025.10.08 @ 00:36:46 End 2025.10.08 @ 12:28:14 Sessions 3 Manual Loads 0 Difficulty Rogue Special Mode None Game No. 6 Rogue 6 Adventurer 0 Explorer 0 Win Type - Total 0 Types 0/0/0/0/0/0/0/0/0/0 Lore% 4 Gallery% 7 Achievement% 12 Wizard Run 0 Options --------- Layout 1 ASCII 0 Keyboard 0 Movement Mouse Keybinds 0 Fullscreen 2 Font 32/Tamsyn Map View 50x35 Zoom Use 0% Tactical HUD 1 Map Filters NONE Filters NONE Steam 1 RUN: 8da6d697-88b5-4c9d-a242-a0c124bce2a4